[Event "Early-Titled-Tuesday-Blitz-March-05-2024"]
[Site "Chess.com"]
[Date "2024.03.05"]
[Round "1"]
[White "jeetjain"]
[Black "DuleMudule"]
[Result "0-1"]
[WhiteElo "2472"]
[BlackElo "2861"]
[TimeControl "180+1"]
[EndTime "8:07:47 PST"]
[Termination "DuleMudule won on time"]

1. Nf3 {[%clk 0:02:58.4]} 1... d5 {[%clk 0:02:59.4]} 2. e3 {[%clk 0:02:50.5]}
2... a6 {[%clk 0:02:55.7]} 3. c4 {[%clk 0:02:50.2]} 3... dxc4 {[%clk 0:02:55.5]}
4. Bxc4 {[%clk 0:02:49.3]} 4... e6 {[%clk 0:02:56.1]} 5. d4 {[%clk 0:02:48.6]}
5... b5 {[%clk 0:02:56.1]} 6. Bb3 {[%clk 0:02:48.7]} 6... Bb7 {[%clk 0:02:56.7]}
7. Nc3 {[%clk 0:02:48.7]} 7... Nf6 {[%clk 0:02:56.2]} 8. O-O {[%clk 0:02:48.6]}
8... Nbd7 {[%clk 0:02:56.8]} 9. Re1 {[%clk 0:02:45]} 9... c5 {[%clk 0:02:56.8]}
10. e4 {[%clk 0:02:41]} 10... cxd4 {[%clk 0:02:54.4]} 11. Nxd4 {[%clk 0:02:35]}
11... Bc5 {[%clk 0:02:53.5]} 12. e5 {[%clk 0:02:32.8]} 12... Nxe5 {[%clk
0:02:41.9]} 13. Nxe6 {[%clk 0:02:30.7]} 13... Qxd1 {[%clk 0:02:41.3]} 14. Nxd1
{[%clk 0:02:22.9]} 14... fxe6 {[%clk 0:02:09.5]} 15. Rxe5 {[%clk 0:02:22.4]}
15... Bd6 {[%clk 0:02:08.8]} 16. Rxe6+ {[%clk 0:02:21.8]} 16... Kd7 {[%clk
0:02:09.4]} 17. Bg5 {[%clk 0:02:15.3]} 17... Ne4 {[%clk 0:01:55.8]} 18. Bh4
{[%clk 0:02:14.7]} 18... Nc5 {[%clk 0:01:54.9]} 19. Re3 {[%clk 0:02:11.2]} 19...
Nxb3 {[%clk 0:01:53.7]} 20. axb3 {[%clk 0:02:12.1]} 20... Rhe8 {[%clk
0:01:48.9]} 21. Rxe8 {[%clk 0:02:03.3]} 21... Rxe8 {[%clk 0:01:48]} 22. Ne3
{[%clk 0:02:02.4]} 22... Be5 {[%clk 0:01:48.2]} 23. Rd1+ {[%clk 0:01:59]} 23...
Ke6 {[%clk 0:01:48.2]} 24. Re1 {[%clk 0:01:55.5]} 24... Kf7 {[%clk 0:01:45.1]}
25. Nf5 {[%clk 0:01:49.9]} 25... g6 {[%clk 0:01:43.1]} 26. Nh6+ {[%clk
0:01:49.5]} 26... Kf8 {[%clk 0:01:40.5]} 27. Bg3 {[%clk 0:01:42.5]} 27... Bxb2
{[%clk 0:01:38.3]} 28. Bd6+ {[%clk 0:01:42.3]} 28... Kg7 {[%clk 0:01:37.9]} 29.
Rxe8 {[%clk 0:01:41.7]} 29... Kxh6 {[%clk 0:01:38.1]} 30. h4 {[%clk 0:01:35.9]}
30... Kh5 {[%clk 0:01:33.4]} 31. Re7 {[%clk 0:01:29.4]} 31... Bd5 {[%clk
0:01:33.4]} 32. Rxh7+ {[%clk 0:01:29.3]} 32... Kg4 {[%clk 0:01:33.4]} 33. f3+
{[%clk 0:01:28.4]} 33... Kf5 {[%clk 0:01:33.4]} 34. g4+ {[%clk 0:01:28]} 34...
Ke6 {[%clk 0:01:33.1]} 35. Bf4 {[%clk 0:01:20]} 35... Bxb3 {[%clk 0:01:32.2]}
36. h5 {[%clk 0:01:15.6]} 36... gxh5 {[%clk 0:01:29.3]} 37. gxh5 {[%clk
0:01:11.6]} 37... a5 {[%clk 0:01:25.7]} 38. h6 {[%clk 0:01:05.2]} 38... a4
{[%clk 0:01:24.7]} 39. Rb7 {[%clk 0:00:45.9]} 39... Bc4 {[%clk 0:01:06.9]} 40.
Rb6+ {[%clk 0:00:25.8]} 40... Kf7 {[%clk 0:01:03]} 41. h7 {[%clk 0:00:15.5]}
41... a3 {[%clk 0:00:54.6]} 42. Rb7+ {[%clk 0:00:12.6]} 42... Kg6 {[%clk
0:00:51.3]} 43. Bc1 {[%clk 0:00:12.7]} 43... Bd4+ {[%clk 0:00:49.6]} 44. Kg2
{[%clk 0:00:09.2]} 44... a2 {[%clk 0:00:49.9]} 45. Ra7 {[%clk 0:00:09.4]} 45...
a1=Q {[%clk 0:00:49.3]} 46. Rxa1 {[%clk 0:00:09.3]} 46... Bxa1 {[%clk
0:00:50.2]} 47. h8=Q {[%clk 0:00:09.4]} 47... Bxh8 {[%clk 0:00:48.9]} 48. Kf2
{[%clk 0:00:10.3]} 48... Bd4+ {[%clk 0:00:46.2]} 49. Ke1 {[%clk 0:00:10.7]}
49... Kf5 {[%clk 0:00:45.2]} 50. Kd2 {[%clk 0:00:10.7]} 50... Kf4 {[%clk
0:00:44.7]} 51. Ba3 {[%clk 0:00:10.6]} 51... Kxf3 {[%clk 0:00:45.1]} 52. Kc2
{[%clk 0:00:10.2]} 52... Ke4 {[%clk 0:00:45.4]} 0-1

[Event "Early-Titled-Tuesday-Blitz-March-05-2024"]
[Site "Chess.com"]
[Date "2024.03.05"]
[Round "1"]
[White "thesupera12"]
[Black "ChessBrainiacOnTwitch"]
[Result "1/2-1/2"]
[WhiteElo "2469"]
[BlackElo "2837"]
[TimeControl "180+1"]
[EndTime "8:07:48 PST"]
[Termination "Game drawn - insufficient material"]

1. Nf3 {[%clk 0:02:57.5]} 1... Nf6 {[%clk 0:02:59.7]} 2. d4 {[%clk 0:02:56.3]}
2... e6 {[%clk 0:02:59.3]} 3. Bg5 {[%clk 0:02:56.4]} 3... h6 {[%clk 0:02:59]} 4.
Bxf6 {[%clk 0:02:56.8]} 4... Qxf6 {[%clk 0:02:59.9]} 5. e3 {[%clk 0:02:57.2]}
5... b6 {[%clk 0:02:57.9]} 6. c4 {[%clk 0:02:58]} 6... Bb7 {[%clk 0:02:58.3]} 7.
Nc3 {[%clk 0:02:56.8]} 7... Bb4 {[%clk 0:02:58.2]} 8. Be2 {[%clk 0:02:56.5]}
8... O-O {[%clk 0:02:58.4]} 9. Qb3 {[%clk 0:02:52.5]} 9... Qe7 {[%clk
0:02:57.7]} 10. O-O {[%clk 0:02:52.2]} 10... a5 {[%clk 0:02:54.3]} 11. a3 {[%clk
0:02:51]} 11... Bxc3 {[%clk 0:02:54]} 12. Qxc3 {[%clk 0:02:51.2]} 12... d6
{[%clk 0:02:52]} 13. b4 {[%clk 0:02:51.3]} 13... Nd7 {[%clk 0:02:50.4]} 14. Nd2
{[%clk 0:02:43.5]} 14... e5 {[%clk 0:02:46.9]} 15. Bf3 {[%clk 0:02:42.9]} 15...
e4 {[%clk 0:02:47.3]} 16. Be2 {[%clk 0:02:43.2]} 16... f5 {[%clk 0:02:47.1]} 17.
Rab1 {[%clk 0:02:39.9]} 17... axb4 {[%clk 0:02:44.8]} 18. axb4 {[%clk
0:02:39.6]} 18... f4 {[%clk 0:02:42.6]} 19. d5 {[%clk 0:02:31]} 19... Rae8
{[%clk 0:02:34.8]} 20. exf4 {[%clk 0:02:28.6]} 20... Rxf4 {[%clk 0:02:35.7]} 21.
Nb3 {[%clk 0:02:20.6]} 21... Ne5 {[%clk 0:02:25.7]} 22. Nd4 {[%clk 0:02:18.9]}
22... Bc8 {[%clk 0:02:24.1]} 23. Rbc1 {[%clk 0:02:07.5]} 23... Ref8 {[%clk
0:02:21.3]} 24. c5 {[%clk 0:02:06.8]} 24... Qg5 {[%clk 0:02:16.5]} 25. cxd6
{[%clk 0:01:57.5]} 25... Nf3+ {[%clk 0:01:47.2]} 26. Bxf3 {[%clk 0:01:38.3]}
26... exf3 {[%clk 0:01:31.8]} 27. g3 {[%clk 0:01:37.7]} 27... Qg4 {[%clk
0:01:19.4]} 28. Nxf3 {[%clk 0:01:14.6]} 28... Rxf3 {[%clk 0:01:20.3]} 29. Qxc7
{[%clk 0:01:10.8]} 29... Ba6 {[%clk 0:00:50.8]} 30. d7 {[%clk 0:00:55.6]} 30...
Bxf1 {[%clk 0:00:50.6]} 31. d8=Q {[%clk 0:00:55.8]} 31... Rxd8 {[%clk
0:00:51.2]} 32. Qxd8+ {[%clk 0:00:56.5]} 32... Rf8 {[%clk 0:00:51.9]} 33. Qxb6
{[%clk 0:00:53.5]} 33... Bh3 {[%clk 0:00:49]} 34. Qe6+ {[%clk 0:00:44.2]} 34...
Qxe6 {[%clk 0:00:49]} 35. dxe6 {[%clk 0:00:44.9]} 35... Bxe6 {[%clk 0:00:49.9]}
36. b5 {[%clk 0:00:41.7]} 36... Rb8 {[%clk 0:00:50]} 37. Rc5 {[%clk 0:00:40.5]}
37... Rb6 {[%clk 0:00:49.8]} 38. f3 {[%clk 0:00:37.2]} 38... Bd7 {[%clk
0:00:49.8]} 39. Kf2 {[%clk 0:00:37.6]} 39... Bxb5 {[%clk 0:00:49.1]} 40. Ke3
{[%clk 0:00:36.3]} 40... Kf8 {[%clk 0:00:49.1]} 41. g4 {[%clk 0:00:36.5]} 41...
Be8 {[%clk 0:00:49.5]} 42. Kf4 {[%clk 0:00:35.4]} 42... Ke7 {[%clk 0:00:48.9]}
43. Rc7+ {[%clk 0:00:34]} 43... Bd7 {[%clk 0:00:49.4]} 44. Rc3 {[%clk
0:00:34.9]} 44... g5+ {[%clk 0:00:49.3]} 45. Kg3 {[%clk 0:00:35]} 45... Kf6
{[%clk 0:00:48.1]} 46. h4 {[%clk 0:00:31.4]} 46... Rb1 {[%clk 0:00:41]} 47. Rd3
{[%clk 0:00:29.8]} 47... Be6 {[%clk 0:00:40]} 48. hxg5+ {[%clk 0:00:27.2]} 48...
hxg5 {[%clk 0:00:40.9]} 49. f4 {[%clk 0:00:21.1]} 49... Rg1+ {[%clk 0:00:37]}
50. Kf2 {[%clk 0:00:20.3]} 50... Rxg4 {[%clk 0:00:36.3]} 51. fxg5+ {[%clk
0:00:21]} 51... Kxg5 {[%clk 0:00:36.2]} 52. Rg3 {[%clk 0:00:20.9]} 52... Kf4
{[%clk 0:00:05.7]} 53. Rxg4+ {[%clk 0:00:19.2]} 53... Bxg4 {[%clk 0:00:06.6]}
1/2-1/2

[Event "Early-Titled-Tuesday-Blitz-March-05-2024"]
[Site "Chess.com"]
[Date "2024.03.05"]
[Round "1"]
[White "Yeritsyaan"]
[Black "ZuraTqebuchava"]
[Result "1-0"]
[WhiteElo "2586"]
[BlackElo "2253"]
[TimeControl "180+1"]
[EndTime "8:07:48 PST"]
[Termination "Yeritsyaan won on time"]

1. c4 {[%clk 0:02:57.8]} 1... g6 {[%clk 0:02:56.1]} 2. g3 {[%clk 0:02:52.6]}
2... Bg7 {[%clk 0:02:56.4]} 3. Bg2 {[%clk 0:02:52.7]} 3... c5 {[%clk 0:02:55.7]}
4. Nc3 {[%clk 0:02:52.2]} 4... Nc6 {[%clk 0:02:55.5]} 5. e3 {[%clk 0:02:51.6]}
5... Nf6 {[%clk 0:02:55.4]} 6. Nge2 {[%clk 0:02:52.1]} 6... O-O {[%clk 0:02:55]}
7. O-O {[%clk 0:02:48.7]} 7... d6 {[%clk 0:02:54.8]} 8. d4 {[%clk 0:02:49.2]}
8... cxd4 {[%clk 0:02:54.5]} 9. Nxd4 {[%clk 0:02:47]} 9... Nxd4 {[%clk
0:02:51.2]} 10. exd4 {[%clk 0:02:47.9]} 10... Rb8 {[%clk 0:02:42]} 11. h3 {[%clk
0:02:42.4]} 11... Be6 {[%clk 0:02:40.8]} 12. b3 {[%clk 0:02:41.7]} 12... Qd7
{[%clk 0:02:35.4]} 13. Kh2 {[%clk 0:02:35.8]} 13... h5 {[%clk 0:02:27.4]} 14.
Be3 {[%clk 0:02:33.8]} 14... d5 {[%clk 0:02:19.9]} 15. c5 {[%clk 0:02:29.7]}
15... b6 {[%clk 0:02:15]} 16. b4 {[%clk 0:02:23.7]} 16... bxc5 {[%clk
0:02:14.4]} 17. bxc5 {[%clk 0:02:23.1]} 17... Rb2 {[%clk 0:02:08.9]} 18. Qc1
{[%clk 0:02:17.7]} 18... Rfb8 {[%clk 0:02:05.8]} 19. Bf4 {[%clk 0:02:16.3]}
19... R8b4 {[%clk 0:01:53.7]} 20. a3 {[%clk 0:01:57.5]} 20... R4b3 {[%clk
0:01:47]} 21. Nd1 {[%clk 0:01:55]} 21... Re2 {[%clk 0:01:40.8]} 22. Rb1 {[%clk
0:01:48.1]} 22... Qb5 {[%clk 0:01:33]} 23. Nc3 {[%clk 0:01:34.2]} 23... Rxb1
{[%clk 0:01:20.1]} 24. Nxb5 {[%clk 0:01:24.4]} 24... Rxc1 {[%clk 0:01:19.6]} 25.
Rxc1 {[%clk 0:01:25.1]} 25... Rxf2 {[%clk 0:01:07.1]} 26. c6 {[%clk 0:01:24.6]}
26... Rb2 {[%clk 0:01:05.9]} 27. Nxa7 {[%clk 0:01:20.2]} 27... Ne4 {[%clk
0:01:00.5]} 28. c7 {[%clk 0:01:13.2]} 28... Bxd4 {[%clk 0:00:59.6]} 29. c8=Q+
{[%clk 0:00:47.5]} 29... Bxc8 {[%clk 0:00:58.4]} 30. Nxc8 {[%clk 0:00:48.2]}
30... e5 {[%clk 0:00:49.4]} 31. Bh6 {[%clk 0:00:38.6]} 31... Ra2 {[%clk
0:00:40.2]} 32. Ne7+ {[%clk 0:00:32.6]} 32... Kh7 {[%clk 0:00:39.4]} 33. Bf8
{[%clk 0:00:33.2]} 33... Nd2 {[%clk 0:00:29.8]} 34. Nxd5 {[%clk 0:00:30.4]}
34... e4 {[%clk 0:00:22.2]} 35. Kh1 {[%clk 0:00:18.5]} 35... h4 {[%clk
0:00:21.2]} 36. gxh4 {[%clk 0:00:17]} 36... e3 {[%clk 0:00:20.7]} 37. Bb4 {[%clk
0:00:17.2]} 37... e2 {[%clk 0:00:17.4]} 38. Nf4 {[%clk 0:00:13.7]} 38... Nb3
{[%clk 0:00:13.1]} 39. Re1 {[%clk 0:00:13.9]} 39... Be5 {[%clk 0:00:08.7]} 40.
Nxe2 {[%clk 0:00:12.5]} 40... Nd4 {[%clk 0:00:04.7]} 41. Nxd4 {[%clk 0:00:11.9]}
41... Bxd4 {[%clk 0:00:05.6]} 42. Rd1 {[%clk 0:00:11.5]} 42... Be5 {[%clk
0:00:05.6]} 43. Bd5 {[%clk 0:00:10.8]} 43... Kg7 {[%clk 0:00:04.9]} 44. Bxa2
{[%clk 0:00:10.5]} 1-0

[Event "Early-Titled-Tuesday-Blitz-March-05-2024"]
[Site "Chess.com"]
[Date "2024.03.05"]
[Round "1"]
[White "Meri-Arabidze"]
[Black "RamonManon0g"]
[Result "1-0"]
[WhiteElo "2717"]
[BlackElo "2419"]
[TimeControl "180+1"]
[EndTime "8:07:50 PST"]
[Termination "Meri-Arabidze won on time"]

1. d4 {[%clk 0:03:00.9]} 1... Nf6 {[%clk 0:02:59.8]} 2. c4 {[%clk 0:03:01.2]}
2... g6 {[%clk 0:03:00.7]} 3. Nc3 {[%clk 0:02:59.9]} 3... d5 {[%clk 0:03:00.8]}
4. Nf3 {[%clk 0:03:00.8]} 4... Bg7 {[%clk 0:03:00.6]} 5. cxd5 {[%clk 0:03:00.3]}
5... Nxd5 {[%clk 0:03:00.6]} 6. e4 {[%clk 0:03:01]} 6... Nxc3 {[%clk 0:03:01.2]}
7. bxc3 {[%clk 0:03:01.9]} 7... c5 {[%clk 0:03:01.7]} 8. Bc4 {[%clk 0:03:01.5]}
8... O-O {[%clk 0:03:01.4]} 9. O-O {[%clk 0:03:01.2]} 9... Bg4 {[%clk
0:03:00.3]} 10. Be3 {[%clk 0:03:00.8]} 10... Nc6 {[%clk 0:02:59.7]} 11. e5
{[%clk 0:02:48.7]} 11... Bxf3 {[%clk 0:02:52.9]} 12. gxf3 {[%clk 0:02:40.4]}
12... Qa5 {[%clk 0:02:50.1]} 13. f4 {[%clk 0:02:31.5]} 13... Rad8 {[%clk
0:02:44.3]} 14. d5 {[%clk 0:02:28.9]} 14... Qxc3 {[%clk 0:02:41.5]} 15. Rc1
{[%clk 0:02:28.5]} 15... Qa3 {[%clk 0:02:34.7]} 16. Qb3 {[%clk 0:02:14.4]} 16...
Qxb3 {[%clk 0:02:27.6]} 17. Bxb3 {[%clk 0:02:15.3]} 17... Na5 {[%clk 0:02:23.8]}
18. Rxc5 {[%clk 0:02:06.8]} 18... Nxb3 {[%clk 0:02:21.9]} 19. axb3 {[%clk
0:02:07.7]} 19... b6 {[%clk 0:02:22.3]} 20. Rc7 {[%clk 0:02:01.5]} 20... Rxd5
{[%clk 0:02:22.2]} 21. Rxa7 {[%clk 0:01:54.5]} 21... Rb5 {[%clk 0:02:20.5]} 22.
Rb1 {[%clk 0:01:48.2]} 22... e6 {[%clk 0:02:13.2]} 23. Rb7 {[%clk 0:01:46.8]}
23... Bh6 {[%clk 0:02:13]} 24. b4 {[%clk 0:01:29.6]} 24... Rc8 {[%clk
0:02:07.9]} 25. Kg2 {[%clk 0:01:04.7]} 25... Rc4 {[%clk 0:02:04.7]} 26. Rxb6
{[%clk 0:01:04.8]} 26... Rxb6 {[%clk 0:01:53.9]} 27. Bxb6 {[%clk 0:01:05.7]}
27... Bxf4 {[%clk 0:01:53.6]} 28. Be3 {[%clk 0:00:46.8]} 28... Bxe5 {[%clk
0:01:52.2]} 29. b5 {[%clk 0:00:46.7]} 29... Rc7 {[%clk 0:01:45.7]} 30. b6 {[%clk
0:00:43.8]} 30... Rb7 {[%clk 0:01:46.2]} 31. Rb5 {[%clk 0:00:35.8]} 31... Bd6
{[%clk 0:01:42.3]} 32. Ra5 {[%clk 0:00:33.3]} 32... Kg7 {[%clk 0:01:32.6]} 33.
Ra7 {[%clk 0:00:29.3]} 33... Rb8 {[%clk 0:01:30.6]} 34. Rd7 {[%clk 0:00:29.2]}
34... Be5 {[%clk 0:01:27.4]} 35. b7 {[%clk 0:00:28.3]} 35... Kf6 {[%clk
0:01:18.9]} 36. Ba7 {[%clk 0:00:27.6]} 36... Re8 {[%clk 0:01:18.5]} 37. Bb6
{[%clk 0:00:19]} 37... Rb8 {[%clk 0:00:57.6]} 38. Ba7 {[%clk 0:00:18.9]} 38...
Re8 {[%clk 0:00:53.3]} 39. h4 {[%clk 0:00:19.5]} 39... h6 {[%clk 0:00:40.8]} 40.
Kf3 {[%clk 0:00:19.3]} 40... Bb8 {[%clk 0:00:38.6]} 41. Bxb8 {[%clk 0:00:14.7]}
41... Rxb8 {[%clk 0:00:38]} 42. Ke4 {[%clk 0:00:15.6]} 42... h5 {[%clk
0:00:35.5]} 43. f4 {[%clk 0:00:13.9]} 43... Kg7 {[%clk 0:00:16.2]} 44. Ke5
{[%clk 0:00:13.8]} 44... Kf8 {[%clk 0:00:15.7]} 45. Kd6 {[%clk 0:00:13.8]} 45...
Ke8 {[%clk 0:00:16.6]} 46. Re7+ {[%clk 0:00:07.7]} 46... Kf8 {[%clk 0:00:14.5]}
47. Rc7 {[%clk 0:00:07.8]} 47... Rd8+ {[%clk 0:00:10.2]} 48. Kc6 {[%clk
0:00:07.1]} 1-0

[Event "Early-Titled-Tuesday-Blitz-March-05-2024"]
[Site "Chess.com"]
[Date "2024.03.05"]
[Round "1"]
[White "Qvalda"]
[Black "PavelShkapenko"]
[Result "1/2-1/2"]
[WhiteElo "2441"]
[BlackElo "2741"]
[TimeControl "180+1"]
[EndTime "8:07:53 PST"]
[Termination "Game drawn - insufficient material"]

1. d4 {[%clk 0:03:00.9]} 1... Nf6 {[%clk 0:02:59]} 2. c4 {[%clk 0:02:59.2]} 2...
e6 {[%clk 0:02:59.3]} 3. Bf4 {[%clk 0:02:58]} 3... Bb4+ {[%clk 0:02:54.7]} 4.
Nd2 {[%clk 0:02:57.1]} 4... b6 {[%clk 0:02:53.2]} 5. a3 {[%clk 0:02:51.4]} 5...
Bxd2+ {[%clk 0:02:53.1]} 6. Qxd2 {[%clk 0:02:51.6]} 6... Bb7 {[%clk 0:02:54]} 7.
f3 {[%clk 0:02:50.1]} 7... c5 {[%clk 0:02:50.9]} 8. dxc5 {[%clk 0:02:41.4]} 8...
bxc5 {[%clk 0:02:34.1]} 9. Bd6 {[%clk 0:02:36.9]} 9... Qb6 {[%clk 0:02:33.7]}
10. e4 {[%clk 0:02:33.1]} 10... Nc6 {[%clk 0:02:33.3]} 11. e5 {[%clk 0:02:22.4]}
11... Ng8 {[%clk 0:02:12.6]} 12. b4 {[%clk 0:02:10.4]} 12... cxb4 {[%clk
0:02:10]} 13. axb4 {[%clk 0:02:11.3]} 13... Qd4 {[%clk 0:02:08.9]} 14. Qxd4
{[%clk 0:02:01.7]} 14... Nxd4 {[%clk 0:02:09.8]} 15. Bd3 {[%clk 0:01:56.3]}
15... Ne7 {[%clk 0:02:01.5]} 16. Ne2 {[%clk 0:01:35.4]} 16... Ndf5 {[%clk
0:02:01.7]} 17. Bc5 {[%clk 0:01:32.3]} 17... Ng6 {[%clk 0:01:56.1]} 18. Bxf5
{[%clk 0:01:24.6]} 18... exf5 {[%clk 0:01:55.9]} 19. Bd6 {[%clk 0:01:22.5]}
19... f6 {[%clk 0:01:55.2]} 20. exf6 {[%clk 0:01:11.1]} 20... gxf6 {[%clk
0:01:56.1]} 21. Nd4 {[%clk 0:01:08.2]} 21... Kf7 {[%clk 0:01:55.1]} 22. Nxf5
{[%clk 0:00:56.3]} 22... Ke6 {[%clk 0:01:53.2]} 23. Ra5 {[%clk 0:00:34.2]} 23...
Ne5 {[%clk 0:01:43.9]} 24. Bxe5 {[%clk 0:00:30.2]} 24... fxe5 {[%clk 0:01:44.8]}
25. Ne3 {[%clk 0:00:29.1]} 25... a6 {[%clk 0:01:34.9]} 26. Kf2 {[%clk 0:00:29]}
26... Rab8 {[%clk 0:01:27.6]} 27. Re1 {[%clk 0:00:26.9]} 27... d6 {[%clk
0:01:24.3]} 28. c5 {[%clk 0:00:22.9]} 28... d5 {[%clk 0:01:18.2]} 29. Ng4 {[%clk
0:00:15]} 29... e4 {[%clk 0:01:18.2]} 30. fxe4 {[%clk 0:00:14.6]} 30... dxe4
{[%clk 0:01:18.5]} 31. c6 {[%clk 0:00:15.1]} 31... Bc8 {[%clk 0:01:07]} 32.
Rxe4+ {[%clk 0:00:12.4]} 32... Kd6 {[%clk 0:01:07.5]} 33. Rc5 {[%clk 0:00:08.5]}
33... Rxb4 {[%clk 0:01:05.5]} 34. Rxb4 {[%clk 0:00:05.9]} 34... Kxc5 {[%clk
0:01:05.8]} 35. Rb8 {[%clk 0:00:05.8]} 35... Kxc6 {[%clk 0:01:00.4]} 36. Ne3
{[%clk 0:00:03.5]} 36... Rf8+ {[%clk 0:00:57.8]} 37. Ke1 {[%clk 0:00:02.6]}
37... Kc7 {[%clk 0:00:56.5]} 38. Rb4 {[%clk 0:00:01.8]} 38... Bb7 {[%clk
0:00:56.4]} 39. Rh4 {[%clk 0:00:01.6]} 39... Rf7 {[%clk 0:00:55.7]} 40. g3
{[%clk 0:00:02]} 40... Bc6 {[%clk 0:00:54.2]} 41. Kd2 {[%clk 0:00:02.5]} 41...
Bb5 {[%clk 0:00:38.5]} 42. Nc2 {[%clk 0:00:02.6]} 42... a5 {[%clk 0:00:36.9]}
43. Kc3 {[%clk 0:00:02.9]} 43... Kb6 {[%clk 0:00:34.4]} 44. Nd4 {[%clk 0:00:03]}
44... Rc7+ {[%clk 0:00:33.3]} 45. Kb3 {[%clk 0:00:02.5]} 45... a4+ {[%clk
0:00:32.3]} 46. Ka3 {[%clk 0:00:01.7]} 46... Rc3+ {[%clk 0:00:31.7]} 47. Kb2
{[%clk 0:00:02]} 47... Rc4 {[%clk 0:00:32]} 48. Rh6+ {[%clk 0:00:01.5]} 48...
Ka5 {[%clk 0:00:32]} 49. Nxb5 {[%clk 0:00:02.1]} 49... Kxb5 {[%clk 0:00:32.1]}
50. Rxh7 {[%clk 0:00:02.5]} 50... Re4 {[%clk 0:00:31.8]} 51. Rb7+ {[%clk
0:00:01.7]} 51... Kc4 {[%clk 0:00:30.3]} 52. Ka3 {[%clk 0:00:02.6]} 52... Re2
{[%clk 0:00:29.1]} 53. Rc7+ {[%clk 0:00:02.3]} 53... Kd3 {[%clk 0:00:28.7]} 54.
Kxa4 {[%clk 0:00:02]} 54... Rxh2 {[%clk 0:00:28.7]} 55. Kb5 {[%clk 0:00:02.6]}
55... Ke4 {[%clk 0:00:29]} 56. Rg7 {[%clk 0:00:02.8]} 56... Kf5 {[%clk
0:00:28.8]} 57. g4+ {[%clk 0:00:03.1]} 57... Kf4 {[%clk 0:00:28.6]} 58. Rg8
{[%clk 0:00:03.4]} 58... Rg2 {[%clk 0:00:28.6]} 59. Kc5 {[%clk 0:00:03.8]} 59...
Rxg4 {[%clk 0:00:28.2]} 60. Rxg4+ {[%clk 0:00:03.9]} 60... Kxg4 {[%clk
0:00:28.7]} 1/2-1/2

[Event "Early-Titled-Tuesday-Blitz-March-05-2024"]
[Site "Chess.com"]
[Date "2024.03.05"]
[Round "1"]
[White "IngOscarArdila"]
[Black "SashaKuzhilniy"]
[Result "0-1"]
[WhiteElo "2333"]
[BlackElo "2632"]
[TimeControl "180+1"]
[EndTime "8:07:53 PST"]
[Termination "SashaKuzhilniy won on time"]

1. d4 {[%clk 0:02:59.9]} 1... g6 {[%clk 0:03:00.2]} 2. c4 {[%clk 0:03:00]} 2...
Bg7 {[%clk 0:03:01.1]} 3. Nf3 {[%clk 0:03:00.4]} 3... d6 {[%clk 0:03:01.5]} 4.
Nc3 {[%clk 0:03:00.3]} 4... Nd7 {[%clk 0:02:59.1]} 5. e3 {[%clk 0:03:00.2]} 5...
e5 {[%clk 0:02:59.2]} 6. Be2 {[%clk 0:02:57.8]} 6... Ngf6 {[%clk 0:02:59.5]} 7.
Qc2 {[%clk 0:02:57.6]} 7... O-O {[%clk 0:02:58.9]} 8. O-O {[%clk 0:02:57.5]}
8... Re8 {[%clk 0:02:58]} 9. dxe5 {[%clk 0:02:57.6]} 9... dxe5 {[%clk
0:02:55.9]} 10. Rd1 {[%clk 0:02:57.1]} 10... c6 {[%clk 0:02:54.6]} 11. b3 {[%clk
0:02:56.3]} 11... Qc7 {[%clk 0:02:52.6]} 12. Ba3 {[%clk 0:02:55.7]} 12... Nf8
{[%clk 0:02:33.4]} 13. Bd6 {[%clk 0:02:54.5]} 13... Qa5 {[%clk 0:02:29.2]} 14.
b4 {[%clk 0:02:51.7]} 14... Qb6 {[%clk 0:02:26.6]} 15. Na4 {[%clk 0:02:48.5]}
15... Qa6 {[%clk 0:02:11.8]} 16. c5 {[%clk 0:02:48.4]} 16... b5 {[%clk 0:02:11]}
17. cxb6 {[%clk 0:02:48.1]} 17... Qb7 {[%clk 0:02:10.9]} 18. bxa7 {[%clk
0:02:19.5]} 18... Bf5 {[%clk 0:02:09.7]} 19. Qc4 {[%clk 0:02:07.6]} 19... N8d7
{[%clk 0:01:57.5]} 20. Nc5 {[%clk 0:02:06.5]} 20... Qxa7 {[%clk 0:01:56.5]} 21.
Ng5 {[%clk 0:02:03.8]} 21... Nb6 {[%clk 0:01:54.6]} 22. Qb3 {[%clk 0:02:01]}
22... e4 {[%clk 0:01:45.6]} 23. Bc4 {[%clk 0:01:55.2]} 23... Nfd5 {[%clk
0:01:36.6]} 24. Rac1 {[%clk 0:01:49.9]} 24... h6 {[%clk 0:01:32]} 25. Nh3 {[%clk
0:01:44.5]} 25... Nxc4 {[%clk 0:01:30.2]} 26. Qxc4 {[%clk 0:01:42.8]} 26... Qxa2
{[%clk 0:01:25.9]} 27. Nf4 {[%clk 0:01:30.8]} 27... Qxc4 {[%clk 0:00:57.8]} 28.
Rxc4 {[%clk 0:01:30.1]} 28... Nc3 {[%clk 0:00:58.1]} 29. Re1 {[%clk 0:01:02]}
29... Ra2 {[%clk 0:00:55.7]} 30. h3 {[%clk 0:00:50.9]} 30... h5 {[%clk
0:00:54.6]} 31. Nb7 {[%clk 0:00:18.8]} 31... Ra6 {[%clk 0:00:24.5]} 32. Na5
{[%clk 0:00:17.9]} 32... Bd7 {[%clk 0:00:20.3]} 33. Ne2 {[%clk 0:00:11.5]} 33...
Nxe2+ {[%clk 0:00:15.8]} 34. Rxe2 {[%clk 0:00:12.4]} 34... c5 {[%clk 0:00:16.4]}
35. Bxc5 {[%clk 0:00:11.5]} 35... Bb5 {[%clk 0:00:16.8]} 36. Rec2 {[%clk
0:00:11.6]} 36... Bxc4 {[%clk 0:00:17]} 37. Nxc4 {[%clk 0:00:12.1]} 37... Ra1+
{[%clk 0:00:14.1]} 38. Kh2 {[%clk 0:00:12.1]} 38... h4 {[%clk 0:00:13.9]} 39.
Bd6 {[%clk 0:00:11.4]} 39... Rb1 {[%clk 0:00:12.3]} 40. Na3 {[%clk 0:00:09.3]}
40... Rb3 {[%clk 0:00:11.9]} 41. Nb5 {[%clk 0:00:08.7]} 41... Rd8 {[%clk
0:00:08.5]} 42. Rc4 {[%clk 0:00:08.3]} 42... Rxd6 {[%clk 0:00:07.9]} 43. Nxd6
{[%clk 0:00:07.7]} 43... Be5+ {[%clk 0:00:08.5]} 44. g3 {[%clk 0:00:08.4]} 44...
hxg3+ {[%clk 0:00:08.6]} 45. fxg3 {[%clk 0:00:07.7]} 45... Rb2+ {[%clk
0:00:09.3]} 46. Kg1 {[%clk 0:00:07.3]} 46... Bxd6 {[%clk 0:00:09.7]} 47. Rxe4
{[%clk 0:00:07.7]} 47... Rxb4 {[%clk 0:00:09.6]} 48. Kg2 {[%clk 0:00:07.4]}
48... Rxe4 {[%clk 0:00:09.3]} 0-1